fUSD/lending_fUSD_20250101
["ID","MTS","AMOUNT","RATE_DAILY","PERIOD"]
[347362999,1735733441106,-500.0,0.00010958,2]
[347363000,1735733441115,-1949.47,0.00010958,2]
[347363001,1735733441125,-1774.86,0.00010958,2]
[347363002,1735733441135,-500.0,0.00010958,2]
[347363003,1735733441144,-500.0,0.00010958,2]
[347363004,1735733441153,-2347.24,0.00010958,2]
[347363005,1735733441162,-1044.17,0.00010958,2]
[347363006,1735733441171,-500.0,0.00010958,2]
[347363007,1735733441181,-941.42,0.00010958,2]
[347363008,1735733441191,-633.33,0.00010958,2]
[347363009,1735733441200,-11728.19,0.00010958,2]
[347363010,1735733441208,-1064.57,0.00010958,2]
[347363011,1735733441217,-500.0,0.00010958,2]
[347363012,1735733441226,-902.33,0.00010958,2]
[347363013,1735733441236,-500.0,0.00010958,2]
[347363014,1735733441245,-613.25972953,0.00010958,2]
[347363015,1735733441255,-500.0,0.00010958,2]
[347363016,1735733441264,-582.88,0.00010958,2]
[347363017,1735733441274,-500.0,0.00010958,2]
[347363018,1735733441283,-1462.45,0.00010958,2]
[347363019,1735733441292,-608.26,0.00010958,2]
[347363020,1735733441301,-978.74,0.00010958,2]
[347363021,1735733441310,-616.34,0.00010958,2]
[347363022,1735733441319,-500.0,0.00010958,2]
[347363023,1735733441328,-500.0,0.00010958,2]
[347363024,1735733441338,-701.69,0.00010958,2]
[347363025,1735733441347,-555.74,0.00010958,2]
[347363026,1735733441356,-1049.54,0.00010958,2]
[347363027,1735733441365,-918.77,0.00010958,2]
[347363028,1735733441374,-32113.9,0.00010958,2]
[347363029,1735733441384,-500.0,0.00010958,2]
[347363030,1735733441392,-500.0,0.00010958,2]
[347363031,1735733441402,-500.0,0.00010958,2]
[347363032,1735733441411,-500.0,0.00010958,2]
[347363033,1735733441420,-500.0,0.00010958,2]
[347363034,1735733441429,-500.0,0.00010958,2]
[347363035,1735733441439,-1341.28,0.00010958,2]
[347363036,1735733441449,-500.0,0.00010958,2]
[347363037,1735733441458,-500.0,0.00010958,2]
[347363038,1735733441468,-500.0,0.00010958,2]
[347363039,1735733441477,-546.06,0.00010958,2]
[347363040,1735733441487,-500.0,0.00010958,2]
[347363041,1735733441496,-954.32,0.00010958,2]
[347363042,1735733441505,-1635.27,0.00010958,2]
[347363043,1735733441514,-500.0,0.00010958,2]
[347363044,1735733441525,-761.51,0.00010958,2]
[347363045,1735733441535,-500.0,0.00010958,2]
[347363046,1735733441544,-2036.91,0.00010958,2]
[347363047,1735733441555,-1331.14,0.00010958,2]
[347363048,1735733441564,-500.0,0.00010958,2]
[347363049,1735733441574,-500.0,0.00010958,2]
[347363050,1735733441584,-523.67,0.00010958,2]
[347363051,1735733441596,-500.0,0.00010958,2]
[347363052,1735733441605,-2389.04,0.00010958,2]
[347363053,1735733441614,-889.88,0.00010958,2]
[347363054,1735733441623,-500.0,0.00010958,2]
[347363055,1735733441633,-544.21,0.00010958,2]
[347363056,1735733441643,-500.0,0.00010958,2]
[347363057,1735733441652,-500.0,0.00010958,2]
[347363058,1735733441663,-2074.54,0.00010958,2]
[347363059,1735733441673,-554.69743747,0.00010958,2]
[347363060,1735733441683,-500.78,0.00010958,2]
[347363061,1735733441692,-500.0,0.00010958,2]
[347363062,1735733441701,-500.0,0.00010958,2]
[347363063,1735733441711,-2476.64,0.00010958,2]
[347363064,1735733441720,-500.0,0.00010958,2]
[347363065,1735733441729,-674.11,0.00010958,2]
[347363066,1735733441738,-500.0,0.00010958,2]
[347363067,1735733441748,-500.0,0.00010958,2]
[347363068,1735733441757,-777.79,0.00010958,2]
[347363069,1735733441766,-500.0,0.00010958,2]
[347363070,1735733441776,-500.0,0.00010958,2]
[347363071,1735733441785,-500.0,0.00010958,2]
[347363072,1735733441794,-1072.28,0.00010958,2]
[347363073,1735733441804,-1252.3,0.00010958,2]
[347363074,1735733441813,-1327.65,0.00010958,2]
[347363075,1735733441823,-596.49,0.00010958,2]
[347363076,1735733441832,-500.0,0.00010958,2]
[347363077,1735733441842,-500.0,0.00010958,2]
[347363078,1735733441851,-575.78,0.00010958,2]
[347363079,1735733441860,-500.0,0.00010958,2]
[347363080,1735733441869,-500.0,0.00010958,2]
[347363081,1735733441879,-500.0,0.00010958,2]
[347363082,1735733441889,-542.78,0.00010958,2]
[347363083,1735733441898,-500.0,0.00010958,2]
[347363084,1735733441907,-2078.14,0.00010958,2]
[347363085,1735733441916,-636.23,0.00010958,2]
[347363086,1735733441925,-777.84,0.00010958,2]
[347363087,1735733441936,-500.0,0.00010958,2]
[347363088,1735733441945,-500.0,0.00010958,2]
[347363089,1735733441956,-513.99380455,0.00010958,2]
[347363090,1735733441965,-544.35,0.00010958,2]
[347363091,1735733441974,-2196.06,0.00010958,2]
[347363092,1735733441983,-2082.63,0.00010958,2]
[347363093,1735733441992,-944.95,0.00010958,2]
[347363094,1735733442001,-513.92,0.00010958,2]
[347363095,1735733442010,-500.0,0.00010958,2]
[347363096,1735733442019,-500.0,0.00010958,2]
[347363097,1735733442028,-589.8,0.00010958,2]
[347363098,1735733442036,-500.0,0.00010958,2]
[347363099,1735733442045,-500.0,0.00010958,2]
[347363100,1735733442054,-2254.14,0.00010958,2]
[347363101,1735733442063,-2306.3,0.00010958,2]
[347363102,1735733442071,-500.0,0.00010958,2]
[347363103,1735733442080,-689.49,0.00010958,2]
[347363104,1735733442089,-500.0,0.00010958,2]
[347363105,1735733442098,-2223.21,0.00010958,2]
[347363106,1735733442107,-751.39,0.00010958,2]
[347363107,1735733442116,-500.0,0.00010958,2]
[347363108,1735733442125,-500.0,0.00010958,2]
[347363109,1735733442134,-500.0,0.00010958,2]
[347363110,1735733442143,-500.0,0.00010958,2]
[347363111,1735733442152,-526.31,0.00010958,2]
[347363112,1735733442161,-1433.59,0.00010958,2]
[347363113,1735733442170,-4695.58,0.00010958,2]
[347363114,1735733442179,-1525.72,0.00010958,2]
[347363115,1735733442189,-500.0,0.00010958,2]
[347363116,1735733442199,-1895.59,0.00010958,2]
[347363117,1735733442208,-500.0,0.00010958,2]
[347363118,1735733442217,-2016.72,0.00010958,2]
[347363119,1735733442226,-1080.22,0.00010958,2]
[347363120,1735733442235,-2058.88,0.00010958,2]
[347363121,1735733442244,-1044.59,0.00010958,2]
[347363122,1735733442253,-890.64,0.00010958,2]
[347363123,1735733442262,-961.56,0.00010958,2]
[347363124,1735733442271,-1459.58,0.00010958,2]
[347363125,1735733442279,-565.83,0.00010958,2]
[347363126,1735733442288,-500.0,0.00010958,2]
[347363127,1735733442299,-500.0,0.00010958,2]
[347363128,1735733442308,-1629.95,0.00010958,2]
[347363129,1735733442317,-1195.99,0.00010958,2]
[347363130,1735733442326,-733.62,0.00010958,2]
[347363131,1735733442337,-500.0,0.00010958,2]
[347363132,1735733442346,-1450.09,0.00010958,2]
[347363133,1735733442355,-500.0,0.00010958,2]
[347363134,1735733442364,-500.0,0.00010958,2]
[347363135,1735733442374,-367.74814023,0.00010958,2]
[347363136,1735733442383,-500.0,0.00010958,2]
[347363137,1735733442391,-822.61,0.00010958,2]
[347363138,1735733442400,-2189.61,0.00010958,2]
[347363139,1735733442410,-1523.58,0.00010958,2]
[347363140,1735733442419,-1648.08,0.00010958,2]
[347363141,1735733442428,-1006.14,0.00010958,2]
[347363142,1735733442440,-500.0,0.00010958,2]
[347363143,1735733442449,-500.0,0.00010958,2]
[347363144,1735733442459,-3855.92,0.00010958,2]
[347363145,1735733442468,-500.0,0.00010958,2]
[347363146,1735733442478,-1320.11,0.00010958,2]
[347363147,1735733442488,-500.0,0.00010958,2]
[347363148,1735733442497,-500.0,0.00010958,2]
[347363149,1735733442506,-611.71,0.00010958,2]
[347363150,1735733442516,-719.81,0.00010958,2]
[347363151,1735733442525,-1883.33,0.00010958,2]
[347363152,1735733442535,-1883.33,0.00010958,2]
[347363153,1735733442543,-1045.82,0.00010958,2]
[347363154,1735733442553,-500.0,0.00010958,2]
[347363155,1735733442567,-500.0,0.00010958,2]
[347363156,1735733442576,-1351.29,0.00010958,2]
[347363157,1735733442589,-4932.43,0.00010958,2]
[347363158,1735733442600,-500.0,0.00010958,2]
[347363159,1735733442609,-500.0,0.00010958,2]
[347363160,1735733442619,-500.0,0.00010958,2]
[347363161,1735733442628,-500.0,0.00010958,2]
[347363162,1735733442639,-2407.72,0.00010958,2]
[347363163,1735733442648,-2719.93,0.00010958,2]
[347363164,1735733442658,-500.0,0.00010958,2]
[347363165,1735733442668,-1194.24,0.00010958,2]
[347363166,1735733442677,-500.0,0.00010958,2]
[347363167,1735733442686,-500.0,0.00010958,2]
[347363168,1735733442696,-500.0,0.00010958,2]
[347363169,1735733442705,-2005.32,0.00010958,2]
[347363170,1735733442715,-500.0,0.00010958,2]
[347363171,1735733442723,-500.0,0.00010958,2]
[347363172,1735733442733,-500.0,0.00010958,2]
[347363173,1735733442742,-633.52,0.00010958,2]
[347363174,1735733442751,-741.97,0.00010958,2]
[347363175,1735733442760,-1088.8,0.00010958,2]
[347363176,1735733442770,-500.0,0.00010958,2]
[347363177,1735733442780,-500.0,0.00010958,2]
[347363178,1735733442789,-1364.15,0.00010958,2]
[347363179,1735733442798,-500.0,0.00010958,2]
[347363180,1735733442807,-500.0,0.00010958,2]
[347363181,1735733442816,-500.0,0.00010958,2]
[347363182,1735733442825,-1362.65,0.00010958,2]
[347363183,1735733442834,-1213.5,0.00010958,2]
[347363184,1735733442843,-500.0,0.00010958,2]
[347363185,1735733442853,-833.49,0.00010958,2]
[347363186,1735733442862,-648.91,0.00010958,2]
[347363187,1735733442871,-500.0,0.00010958,2]
[347363188,1735733442881,-867.78,0.00010958,2]
[347363189,1735733442891,-500.0,0.00010958,2]
[347363190,1735733442900,-500.0,0.00010958,2]
[347363191,1735733442909,-500.0,0.00010958,2]
[347363192,1735733442919,-500.0,0.00010958,2]
[347363193,1735733442928,-1317.22,0.00010958,2]
[347363194,1735733442937,-2148.3,0.00010958,2]
[347363195,1735733442946,-1196.02,0.00010958,2]
[347363196,1735733442955,-500.0,0.00010958,2]
[347363197,1735733442964,-292.7406841,0.00010958,2]
[347363198,1735733442973,-500.0,0.00010958,2]
[347363199,1735733442982,-500.0,0.00010958,2]
[347363200,1735733442991,-1481.26,0.00010958,2]
[347363201,1735733443000,-897.54,0.00010958,2]
[347363202,1735733443009,-1838.94,0.00010958,2]
[347363203,1735733443018,-500.0,0.00010958,2]
[347363204,1735733443027,-500.0,0.00010958,2]
[347363205,1735733443036,-569.09,0.00010958,2]
[347363206,1735733443045,-500.0,0.00010958,2]
[347363207,1735733443054,-1896.15,0.00010958,2]
[347363208,1735733443063,-505.01,0.00010958,2]
[347363209,1735733443072,-500.0,0.00010958,2]
[347363210,1735733443082,-500.0,0.00010958,2]
[347363211,1735733443091,-1337.84,0.00010958,2]
[347363213,1735733443099,-2622.08,0.00010958,2]
[347363214,1735733443109,-500.0,0.00010958,2]
[347363215,1735733443118,-1835.21,0.00010958,2]
[347363216,1735733443127,-500.0,0.00010958,2]
[347363217,1735733443136,-500.0,0.00010958,2]
[347363218,1735733443145,-2341.83,0.00010958,2]
[347363219,1735733443154,-2652.66,0.00010958,2]
[347363220,1735733443163,-500.0,0.00010958,2]
[347363221,1735733443172,-582.98164142,0.00010958,2]
[347363222,1735733443181,-939.27,0.00010958,2]
[347363223,1735733443190,-500.0,0.00010958,2]
[347363224,1735733443198,-618.22,0.00010958,2]
[347363225,1735733443207,-500.0,0.00010958,2]
[347363226,1735733443216,-500.0,0.00010958,2]
[347363227,1735733443225,-500.0,0.00010958,2]
[347363228,1735733443235,-500.0,0.00010958,2]
[347363229,1735733443245,-500.0,0.00010958,2]
[347363230,1735733443254,-636.11,0.00010958,2]
[347363231,1735733443263,-842.33,0.00010958,2]
[347363232,1735733443272,-500.0,0.00010958,2]
[347363233,1735733443281,-500.0,0.00010958,2]
[347363235,1735733443290,-500.0,0.00010958,2]
[347363238,1735733443299,-1836.37,0.00010958,2]
[347363239,1735733443309,-748.07,0.00010958,2]
[347363240,1735733443319,-784.87,0.00010958,2]
[347363241,1735733443329,-500.0,0.00010958,2]
[347363242,1735733443338,-500.0,0.00010958,2]
[347363243,1735733443347,-1958.93,0.00010958,2]
[347363244,1735733443356,-1208.62,0.00010958,2]
[347363245,1735733443367,-1811.03,0.00010958,2]
[347363246,1735733443375,-706.94,0.00010958,2]
[347363247,1735733443384,-500.0,0.00010958,2]
[347363248,1735733443394,-900.44,0.00010958,2]
[347363249,1735733443403,-500.0,0.00010958,2]
[347363250,1735733443413,-556.47,0.00010958,2]
[347363251,1735733443423,-520.55,0.00010958,2]
[347363252,1735733443434,-500.0,0.00010958,2]
[347363253,1735733443443,-2008.98,0.00010958,2]
[347363254,1735733443452,-500.0,0.00010958,2]
[347363255,1735733443462,-500.0,0.00010958,2]
[347363256,1735733443471,-2134.59,0.00010958,2]
[347363257,1735733443481,-596.74,0.00010958,2]
[347363258,1735733443490,-500.0,0.00010958,2]
[347363259,1735733443500,-500.0,0.00010958,2]
[347363260,1735733443509,-2705.33,0.00010958,2]
[347363261,1735733443518,-500.0,0.00010958,2]
[347363262,1735733443527,-628.28,0.00010958,2]
[347363263,1735733443536,-500.0,0.00010958,2]
[347363264,1735733443545,-802.48,0.00010958,2]
[347363265,1735733443554,-611.95,0.00010958,2]
[347363266,1735733443563,-2690.01,0.00010958,2]
[347363267,1735733443572,-718.62,0.00010958,2]
[347363268,1735733443581,-993.55,0.00010958,2]
[347363269,1735733443595,-2602.66,0.00010958,2]
[347363270,1735733443603,-500.0,0.00010958,2]
[347363271,1735733443613,-1206.53,0.00010958,2]
[347363273,1735733443622,-500.0,0.00010958,2]
[347363275,1735733443631,-680.96,0.00010958,2]
[347363277,1735733443641,-150.0,0.00010958,2]
[347363278,1735733443651,-500.0,0.00010958,2]
[347363280,1735733443660,-1218.77,0.00010958,2]
[347363282,1735733443671,-898.54,0.00010958,2]
[347363284,1735733443682,-706.4,0.00010958,2]
[347363286,1735733443691,-500.0,0.00010958,2]
[347363288,1735733443700,-500.0,0.00010958,2]
[347363289,1735733443709,-500.0,0.00010958,2]
[347363290,1735733443718,-500.0,0.00010958,2]
[347363291,1735733443727,-728.35,0.00010958,2]
[347363292,1735733443736,-1082.22,0.00010958,2]
[347363293,1735733443746,-666.46,0.00010958,2]
[347363294,1735733443755,-500.0,0.00010958,2]
[347363295,1735733443763,-1951.47,0.00010958,2]
[347363296,1735733443772,-500.0,0.00010958,2]
[347363297,1735733443782,-500.0,0.00010958,2]
[347363298,1735733443791,-500.0,0.00010958,2]
[347363299,1735733443801,-500.0,0.00010958,2]
[347363300,1735733443810,-1755.35,0.00010958,2]
[347363301,1735733443819,-1374.18,0.00010958,2]
[347363302,1735733443829,-500.0,0.00010958,2]
[347363303,1735733443838,-765.07,0.00010958,2]
[347363304,1735733443847,-1025.75,0.00010958,2]
[347363305,1735733443856,-906.16,0.00010958,2]
[347363306,1735733443866,-1350.84,0.00010958,2]
[347363307,1735733443875,-2008.21,0.00010958,2]
[347363308,1735733443884,-500.0,0.00010958,2]
[347363309,1735733443894,-500.0,0.00010958,2]
[347363310,1735733443903,-18148.51,0.00010958,2]
[347363311,1735733443913,-500.0,0.00010958,2]
[347363312,1735733443922,-1169.24,0.00010958,2]
[347363313,1735733443931,-597.29,0.00010958,2]
[347363314,1735733443941,-653.6,0.00010958,2]
[347363315,1735733443953,-829.56,0.00010958,2]
[347363316,1735733443962,-604.89,0.00010958,2]
[347363317,1735733443971,-500.0,0.00010958,2]
[347363318,1735733443980,-2198.24,0.00010958,2]
[347363319,1735733443989,-1369.44,0.00010958,2]
[347363320,1735733443998,-500.0,0.00010958,2]
[347363321,1735733444007,-1073.04,0.00010958,2]
[347363322,1735733444016,-500.0,0.00010958,2]
[347363323,1735733444025,-517.08,0.00010958,2]
[347363324,1735733444034,-500.0,0.00010958,2]
[347363325,1735733444043,-735.88,0.00010958,2]
[347363326,1735733444052,-500.0,0.00010958,2]
[347363327,1735733444061,-500.0,0.00010958,2]
[347363328,1735733444070,-1446.93,0.00010958,2]
[347363329,1735733444079,-500.0,0.00010958,2]
[347363330,1735733444089,-512.03,0.00010958,2]
[347363331,1735733444098,-500.0,0.00010958,2]
[347363332,1735733444108,-542.12,0.00010958,2]
[347363333,1735733444118,-500.0,0.00010958,2]
[347363334,1735733444128,-500.0,0.00010958,2]
[347363335,1735733444140,-512.44,0.00010958,2]
[347363336,1735733444149,-500.0,0.00010958,2]
[347363337,1735733444158,-1386.29,0.00010958,2]
[347363338,1735733444170,-1630.03,0.00010958,2]
[347363339,1735733444180,-783.86,0.00010958,2]
[347363340,1735733444189,-500.0,0.00010958,2]
[347363341,1735733444199,-638.44,0.00010958,2]
[347363342,1735733444420,-1899.8,0.00010958,2]
[347363343,1735733444430,-3349.41,0.00010958,2]
[347363344,1735733444439,-500.0,0.00010958,2]
[347363345,1735733444448,-1365.65,0.00010958,2]
[347363346,1735733444458,-500.0,0.00010958,2]
[347363347,1735733444467,-1126.47,0.00010958,2]
[347363348,1735733444476,-2311.23,0.00010958,2]
[347363349,1735733444485,-1261.12,0.00010958,2]
[347363350,1735733444494,-500.0,0.00010958,2]
[347363351,1735733444503,-500.0,0.00010958,2]
[347363352,1735733444513,-1309.41,0.00010958,2]
[347363353,1735733444524,-2460.68,0.00010958,2]
[347363354,1735733444533,-500.0,0.00010958,2]
[347363355,1735733444543,-500.0,0.00010958,2]
[347363356,1735733444552,-1341.14,0.00010958,2]
[347363357,1735733444562,-500.0,0.00010958,2]
[347363358,1735733444571,-896.68,0.00010958,2]
[347363359,1735733444581,-500.0,0.00010958,2]
[347363360,1735733444594,-500.0,0.00010958,2]
[347363361,1735733444603,-500.0,0.00010958,2]
[347363362,1735733444612,-1542.87,0.00010958,2]
[347363363,1735733444621,-618.94,0.00010958,2]
[347363364,1735733444631,-500.0,0.00010958,2]
[347363365,1735733444642,-919.72,0.00010958,2]
[347363366,1735733444651,-1486.98,0.00010958,2]
[347363367,1735733444660,-2379.66,0.00010958,2]
[347363368,1735733444670,-1033.25,0.00010958,2]
[347363369,1735733444680,-1906.66,0.00010958,2]
[347363370,1735733444690,-500.0,0.00010958,2]
[347363371,1735733444699,-500.0,0.00010958,2]
[347363372,1735733444708,-1088.97,0.00010958,2]
[347363373,1735733444717,-500.0,0.00010958,2]
[347363374,1735733444726,-880.65,0.00010958,2]
[347363375,1735733444736,-1940.08,0.00010958,2]
[347363376,1735733444745,-500.0,0.00010958,2]
[347363377,1735733444755,-500.0,0.00010958,2]
[347363378,1735733444764,-519.23,0.00010958,2]
[347363379,1735733444773,-500.0,0.00010958,2]
[347363380,1735733444782,-500.0,0.00010958,2]
[347363381,1735733444791,-3091.12,0.00010958,2]
[347363382,1735733444800,-500.0,0.00010958,2]
[347363383,1735733444809,-749.32,0.00010958,2]
[347363384,1735733444818,-1279.57,0.00010958,2]
[347363385,1735733444827,-500.0,0.00010958,2]
[347363386,1735733444837,-500.0,0.00010958,2]
[347363387,1735733444846,-2346.04,0.00010958,2]
[347363388,1735733444855,-511.84,0.00010958,2]
[347363389,1735733444864,-2347.87,0.00010958,2]
[347363390,1735733444874,-500.0,0.00010958,2]
[347363391,1735733444883,-956.02,0.00010958,2]
[347363392,1735733444893,-727.4,0.00010958,2]
[347363393,1735733444902,-1463.68,0.00010958,2]
[347363394,1735733444911,-630.16,0.00010958,2]
[347363395,1735733444921,-785.45,0.00010958,2]
[347363396,1735733444931,-2389.66,0.00010958,2]
[347363397,1735733444940,-1392.87,0.00010958,2]
[347363398,1735733444950,-500.0,0.00010958,2]
[347363399,1735733444959,-500.0,0.00010958,2]
[347363400,1735733444968,-500.0,0.00010958,2]
[347363401,1735733444977,-939.82,0.00010958,2]
[347363402,1735733444986,-500.0,0.00010958,2]
[347363403,1735733444996,-696.2,0.00010958,2]
[347363404,1735733445005,-891.1,0.00010958,2]
[347363405,1735733445014,-5566.67,0.00010958,2]
[347363406,1735733445024,-500.0,0.00010958,2]
[347363407,1735733445034,-500.0,0.00010958,2]
[347363408,1735733445043,-500.0,0.00010958,2]
[347363409,1735733445053,-409.22747123,0.00010958,2]
[347363410,1735733445062,-1650.57,0.00010958,2]
[347363411,1735733445071,-500.71,0.00010958,2]
[347363412,1735733445081,-500.0,0.00010958,2]
[347363413,1735733445090,-2362.5,0.00010958,2]
[347363414,1735733445099,-804.33,0.00010958,2]
[347363415,1735733445107,-1578.08,0.00010958,2]
[347363416,1735733445117,-1763.33,0.00010958,2]
[347363417,1735733445126,-500.0,0.00010958,2]
[347363418,1735733445135,-3718.75,0.00010958,2]
[347363419,1735733445145,-500.0,0.00010958,2]
[347363420,1735733445155,-500.0,0.00010958,2]
[347363421,1735733445164,-547.56,0.00010958,2]
[347363422,1735733445173,-1263.22,0.00010958,2]
[347363423,1735733445183,-250.40487931,0.00010958,2]
[347363424,1735733445192,-2026.17,0.00010958,2]
[347363425,1735733445201,-500.0,0.00010958,2]
[347363426,1735733445211,-595.91892927,0.00010958,2]
[347363427,1735733445220,-500.0,0.00010958,2]
[347363428,1735733445229,-500.0,0.00010958,2]
[347363429,1735733445238,-1090.99,0.00010958,2]
[347363430,1735733445247,-1775.1,0.00010958,2]
[347363431,1735733445256,-923.55,0.00010958,2]
[347363432,1735733445265,-4507.78,0.00010958,2]
[347363433,1735733445275,-2513.26,0.00010958,2]
[347363434,1735733445284,-2687.06,0.00010958,2]
[347363435,1735733445293,-500.0,0.00010958,2]
[347363436,1735733445303,-1787.15,0.00010958,2]
[347363437,1735733445312,-500.0,0.00010958,2]
[347363438,1735733445322,-500.0,0.00010958,2]
[347363439,1735733445331,-500.0,0.00010958,2]
[347363440,1735733445340,-500.0,0.00010958,2]
[347363441,1735733445349,-500.0,0.00010958,2]
[347363442,1735733445359,-500.0,0.00010958,2]
[347363443,1735733445368,-577.32,0.00010958,2]
[347363444,1735733445377,-656.11,0.00010958,2]
[347363445,1735733445386,-1551.4,0.00010958,2]
[347363446,1735733445395,-4764.59,0.00010958,2]
[347363447,1735733445405,-500.0,0.00010958,2]
[347363448,1735733445414,-815.25,0.00010958,2]
[347363449,1735733445424,-446.87631172,0.00010958,2]
[347363450,1735733445433,-500.0,0.00010958,2]
[347363451,1735733445442,-1317.93,0.00010958,2]
[347363452,1735733445452,-799.96,0.00010958,2]
[347363453,1735733445461,-721.79,0.00010958,2]
[347363454,1735733445471,-9083.21,0.00010958,2]
[347363455,1735733445480,-778.83,0.00010958,2]
[347363456,1735733445489,-2438.46,0.00010958,2]
[347363457,1735733445499,-2244.83,0.00010958,2]
[347363458,1735733445508,-3009.29,0.00010958,2]
[347363459,1735733445517,-2287.74,0.00010958,2]
[347363460,1735733445527,-1106.11,0.00010958,2]
[347363461,1735733445536,-1117.47,0.00010958,2]
[347363462,1735733445545,-500.0,0.00010958,2]
[347363463,1735733445554,-984.69,0.00010958,2]
[347363464,1735733445564,-2890.55,0.00010958,2]
[347363465,1735733445573,-694.84,0.00010958,2]
[347363466,1735733445583,-765.08,0.00010958,2]
[347363467,1735733445598,-614.69,0.00010958,2]
[347363468,1735733445607,-1613.98,0.00010958,2]
[347363469,1735733445616,-500.0,0.00010958,2]
[347363470,1735733445626,-500.0,0.00010958,2]
[347363471,1735733445636,-847.06,0.00010958,2]
[347363472,1735733445645,-500.0,0.00010958,2]
[347363473,1735733445655,-500.0,0.00010958,2]
[347363474,1735733445665,-500.0,0.00010958,2]
[347363475,1735733445674,-1151.11,0.00010958,2]
[347363476,1735733445684,-1428.65,0.00010958,2]
[347363477,1735733445693,-1744.85,0.00010958,2]
[347363478,1735733445702,-3166.12,0.00010958,2]
[347363479,1735733445711,-1506.43,0.00010958,2]
[347363480,1735733445720,-531.79,0.00010958,2]
[347363481,1735733445729,-636.51,0.00010958,2]
[347363482,1735733445739,-601.88,0.00010958,2]
[347363483,1735733445748,-2662.2,0.00010958,2]
[347363484,1735733445757,-2562.66,0.00010958,2]
[347363485,1735733445767,-500.0,0.00010958,2]
[347363486,1735733445776,-5291.14,0.00010958,2]
[347363487,1735733445786,-2021.21,0.00010958,2]
[347363488,1735733445795,-2095.27,0.00010958,2]
[347363489,1735733445804,-555.99,0.00010958,2]
[347363490,1735733445814,-500.0,0.00010958,2]
[347363491,1735733445823,-797.05,0.00010958,2]
[347363492,1735733445833,-1882.57,0.00010958,2]
[347363493,1735733445843,-518.78,0.00010958,2]
[347363494,1735733445853,-4597.68,0.00010958,2]
[347363495,1735733445863,-918.24,0.00010958,2]
[347363496,1735733445872,-500.0,0.00010958,2]
[347363497,1735733445882,-621.89,0.00010958,2]
[347363498,1735733445891,-500.0,0.00010958,2]
[347363499,1735733445900,-500.0,0.00010958,2]
[347363500,1735733445910,-7440.87,0.00010958,2]
[347363501,1735733445920,-649.0,0.00010958,2]
[347363502,1735733445930,-500.0,0.00010958,2]
[347363503,1735733445940,-990.9,0.00010958,2]
[347363504,1735733445951,-600.18,0.00010958,2]
[347363505,1735733445960,-2352.41,0.00010958,2]
[347363506,1735733445971,-500.0,0.00010958,2]
[347363507,1735733445981,-519.29,0.00010958,2]
[347363508,1735733445991,-500.0,0.00010958,2]
[347363509,1735733446000,-1015.68,0.00010958,2]
[347363510,1735733446009,-4305.34,0.00010958,2]